Cogmind - Beta 14 @@@ ROGUE MODE // 2024.11.11 @ 21:12:19 Player: MarKhan Result: Destroyed by D-53 Grenadier with Mini Grenade Launcher Performance ------------- Evolutions (0) 0 Regions Visited (2) 400 Robots Destroyed (27) 135 Value Destroyed (556) 556 Prototype IDs (1) 20 Alien Tech Used (0) 0 Bonus (0) 0 TOTAL SCORE: 1111 Bonus ------- None Cogmind --------- Core Integrity 0/250 Matter 300/300 Energy 99/100 System Corruption 1% Temperature Cool (0) Movement Core (50) Location -10/Mines Parts ------- > --- POWER (1) -------- (None) > --- PROPULSION (2) --- (None) > --- UTILITY (2) ------ Visual Processing Unit Seismic Detector > --- WEAPON (2) ------- Datajack > --- INVENTORY (5) ---- Light Ion Engine Weight Redist. System Structural Scanner Improved Terrain Scanner Peak State ------------ > --- POWER ------------ (None) > --- PROPULSION ------- (None) > --- UTILITY ---------- Visual Processing Unit Seismic Detector > --- WEAPON ----------- Improved Medium Laser Improved Medium Laser > --- INVENTORY -------- Light Ion Engine Weight Redist. System Structural Scanner Improved Terrain Scanner Datajack [Rating: 9] Favorites ----------- Power None Propulsion None Utility Visual Processing Unit Device Seismic Detector Processor Visual Processing Unit Weapon Improved Medium Laser Energy Gun Improved Medium Laser Ballistic Gun Assault Rifle Special Weapon Mining Laser Special Melee Weapon Datajack Build | -11 -10 -10 ------- Run | Yrd Mat Min Slots Evolved . | . . . Power . | . . . Propulsion . | . . . Utility . | . . . Weapon . | . . . Parts Attached 30 | 5 24 1 Power . | . . . Engine . | . . . Core . | . . . Reactor . | . . . Propulsion . | . . . Treads . | . . . Leg . | . . . Wheel . | . . . Hover . | . . . Flight . | . . . Utility 10 | 3 7 . Device 8 | 3 5 . Storage . | . . . Processor 2 | . 2 . Hackware . | . . . Protection . | . . . Artifact . | . . . Weapon 20 | 2 17 1 Energy Gun 11 | 1 10 . Energy Cannon . | . . . Ballistic Gun 5 | . 5 . Ballistic Cannon . | . . . Launcher . | . . . Special Weapon 3 | 1 2 . Impact Weapon . | . . . Slashing Weapon . | . . . Piercing Weapon . | . . . Special Melee Weapon 1 | . . 1 Unidentified Prototypes 1 | . 1 . Parts Lost . | . . . Power . | . . . Propulsion . | . . . Utility . | . . . Weapon . | . . . Highest Loss Streak . | . . . To Critical Strikes . | . . . Average Slot Usage (%) 53 | . 53 54 Device 14 | . 14 14 Processor 13 | . 13 14 Energy Gun 21 | . 21 24 Ballistic Gun 2 | . 2 . Peak Build Rating 9 | 5 9 9 Average Rating 7 | 2 7 8 On Entrance 4 | . 5 9 Naked Turns . | . . . Heaviest Build 7 | 4 7 7 Greatest Support 3 | 3 3 3 Greatest Overweight (x) 2 | 1 2 2 Average Overweight (x) 1 | . 1 1 Largest Inventory Capacity 5 | 5 5 5 Average Capacity 5 | 5 5 5 Most Carried 5 | 5 5 5 Average Carried 4 | 3 4 4 Final Capacity 5 | 5 5 5 Final Carried 5 | 4 5 4 Class Distribution -------------------- 100% | Mutant Dominant Class ---------------- Mutant | -10/Materials Mutant | -10/Mines Resources | -11 -10 -10 ----------- Run | Yrd Mat Min Matter Collected 563 | 236 317 10 Remotely . | . . . Salvage Created 810 | 66 728 16 Parts 58 | 10 46 2 Haulers Intercepted 2 | . 2 . Recyclers Shooed 1 | . 1 . Parts Field Recycled . | . . . Retrieved Matter . | . . . Parts Self-Destructed . | . . . Prevented . | . . . Kills | -11 -10 -10 ------- Run | Yrd Mat Min Combat Hostiles Destroyed 17 | . 17 . Guns 17 | . 17 . Classes Destroyed 6 | 1 5 . Tunneler 4 | 3 . 1 Hauler 2 | . 2 . Operator 1 | . 1 . Watcher 3 | . 3 . Swarmer 6 | . 6 . Grunt 11 | . 11 . Best Kill Streak 3 | 3 3 1 Combat Bots Only 3 | . 3 . Max Kills in Single Turn 2 | 1 2 1 Gunslinging 1 | . 1 . Exploded . | . . . Melee . | . . . Uniques/NPCs Destroyed . | . . . Combat | -11 -10 -10 -------- Run | Yrd Mat Min Hostile Shots Fired 63 | . 58 5 Missed 11 | . 9 2 Damage Taken 537 | . 490 47 Core 253 | . 238 15 Absorbed by Shields . | . . . Core Remaining (%) 100 | 100 . . Volleys Fired 83 | 13 69 1 Largest 2 | 1 2 2 Hottest 112 | 50 112 112 Shots Fired 130 | 13 115 2 Gun 126 | 13 111 2 Cannon . | . . . Launcher . | . . . Special 4 | . 4 . Kinetic 31 | . 31 . Thermal 99 | 13 84 2 Explosive . | . . . Electromagnetic . | . . . Robot Hit Streak 12 | 6 12 10 Robot Miss Streak 3 | 2 3 . Penetration Max . | . . . Secondary Targets 2 | . 2 . Max Gunslinging Chain 1 | . 1 . Shots Hit Robots 83 | 10 69 4 Core Hits 37 | 4 31 2 Critical Kills . | . . . Critical Parts Destroyed . | . . . Critical Strikes 7 | 1 6 . Burn 7 | 1 6 . Melee Attacks 2 | . . 2 Impact . | . . . Slashing . | . . . Piercing . | . . . Sneak Attacks 2 | . . 2 Combat Hostiles . | . . . Follow-up Attacks . | . . . Damage Inflicted 1181 | 149 991 41 Guns 1174 | 149 991 34 Cannons . | . . . Explosions . | . . . Melee . | . . . Ramming 7 | . . 7 Kinetic 225 | . 225 . Thermal 949 | 149 766 34 Explosive . | . . . Electromagnetic . | . . . Impact . | . . . Slashing . | . . . Piercing . | . . . Highest Corruption 1 | . . 1 Average Corruption 1 | . . 1 Corruption Purged . | . . . Corruption Blocked . | . . . Overload Shots . | . . . Overflow Damage . | . . . Projectiles . | . . . Explosions . | . . . Melee . | . . . Knockbacks . | . . . Impact . | . . . Kinetic . | . . . Secondary . | . . . Self-Inflicted Damage 3 | . . 3 Shots . | . . . Rammed 3 | . . 3 Targets Rammed 3 | . . 3 Kicked . | . . . Crushed . | . . . Highest Temperature 222 | 25 222 36 Average Temperature 61 | 25 65 20 Received Heat Transfer 156 | . 156 . Siege Activations . | . . . Robots Corrupted . | . . . Combat Hostiles . | . . . Parts Fried . | . . . Impact Corruptions . | . . . Robots Melted . | . . . Combat Hostiles . | . . . Parts Melted 6 | . 6 . Heat Transferred 2923 | 518 2331 74 Parts Sabotaged . | . . . Parts Stolen . | . . . Parts Stripped . | . . . Power Chain Reactions . | . . . Alert | -11 -10 -10 ------- Run | Yrd Mat Min Peak Influence 285 | 15 285 87 Initial 67 | . 9 67 Average 136 | 5 148 70 Maximum Alert Level 1 | . 1 . Low Security (%) 83 | 100 80 100 Level 1 16 | . 19 . Level 2 . | . . . Level 3 . | . . . Level 4 . | . . . Level 5 . | . . . High Security . | . . . Max Security . | . . . Squads Dispatched 3 | . 3 . Investigation 2 | . 2 . Extermination . | . . . Reinforcement 1 | . 1 . Assault . | . . . Garrison . | . . . Intercept . | . . . Searches Triggered . | . . . Construction Impeded . | . . . Haulers Reinforced . | . . . Active Scanning Responses . | . . . Cargo Convoy Interrupts . | . . . Stealth | -11 -10 -10 --------- Run | Yrd Mat Min Distress Signals . | . . . Communications Jammed . | . . . Distress Signals . | . . . Times Spotted 39 | . 27 12 Peak Tracking Total 15 | . 4 15 Tactical Retreats 2 | . 2 . Traps | -11 -10 -10 ------- Run | Yrd Mat Min Traps Triggered 4 | . 4 . Indirectly . | . . . Trap Hack Attempts . | . . . Triggered . | . . . Disarmed . | . . . Reprogrammed . | . . . Reused . | . . . Traps Extracted . | . . . Installed . | . . . Triggered . | . . . Machines | -11 -10 -10 ---------- Run | Yrd Mat Min Machines Disabled . | . . . Max in Single Turn . | . . . Machines Repaired . | . . . Machines Dismantled . | . . . Machines Sabotaged . | . . . Overloaded Fab Kills . | . . . Hacking | -11 -10 -10 --------- Run | Yrd Mat Min Machines Accessed 10 | . 9 1 Terminals 7 | . 7 . Fabricators . | . . . Repair Stations . | . . . Recycling Units 2 | . 2 . Scanalyzers . | . . . Garrison Access . | . . . Total Hacks 35 | . 34 1 Successful 24 | . 23 1 Failed 10 | . 10 . Catastrophic . | . . . Database Lockouts 1 | . 1 . Manual 28 | . 28 . Terminals 26 | . 26 . Fabricators . | . . . Repair Stations . | . . . Recycling Units 8 | . 8 . Scanalyzers . | . . . Garrison Access . | . . . Terminal Hacks 5 | . 4 1 Record 1 | . 1 . Part Schematic 1 | . 1 . Open Door 1 | . . 1 Registered Components 1 | . 1 . Zone Layout 1 | . 1 . Fabricator Hacks . | . . . Repair Station Hacks . | . . . Recycling Unit Hacks 3 | . 3 . Report Inventory 1 | . 1 . Retrieve Components 2 | . 2 . Scanalyzer . | . . . Garrison Access Hacks . | . . . Unauthorized Hacks 16 | . 16 . Terminals 11 | . 11 . Track 1 | . 1 . Assimilate 1 | . 1 . Botnet 3 | . 3 . Operators 1 | . 1 . Skim 5 | . 5 . Fabricators . | . . . Repair Stations . | . . . Recycling Units 5 | . 5 . Reject 2 | . 2 . Recyclers 1 | . 1 . Tunnel 2 | . 2 . Scanalyzers . | . . . Garrison Access . | . . . Data Cores Recovered . | . . . Used . | . . . Hacking Detections 7 | . 7 . Full Trace Events 1 | . 1 . Feedback Events . | . . . Feedback Blocked . | . . . Robot Schematics Acquired . | . . . Robots Built . | . . . Authchips . | . . . Time . | . . . Total Robot Build Rating . | . . . Part Schematics Acquired 1 | . 1 . Parts Built . | . . . Authchips . | . . . Time . | . . . Total Part Build Rating . | . . . Parts Repaired . | . . . Time . | . . . Parts Recycled . | . . . Recycled Matter . | . . . Retrieved Matter . | . . . Retrieved Components 15 | . 15 . Parts Scanalyzed . | . . . Part Schematics Acquired . | . . . Parts Damaged . | . . . Bothacking | -11 -10 -10 ------------ Run | Yrd Mat Min Used RIF Installer . | . . . Robots Hacked 1 | . . 1 Non-combat 1 | . . 1 Combat . | . . . Robot Hacks Applied 2 | . . 2 parse_system 1 | . . 1 no_distress 1 | . . 1 Relay Couplers Released . | . . . Fabnet Peak Effective % . | . . . Robots Rewired . | . . . Allies Hacked . | . . . Hacks Repelled . | . . . Allies | -11 -10 -10 -------- Run | Yrd Mat Min Total Allies 1 | . 1 . Largest Group 1 | . 1 . Highest-Rated Group 10 | . 10 . Highest-Rated Ally 10 | . 10 . Total Orders 5 | . 5 . STAY 3 | . 3 . FOLLOW 2 | . 2 . Ally Attacks . | . . . Total Damage . | . . . Kills . | . . . Allies Corrupted . | . . . Allies Melted . | . . . Intel | -11 -10 -10 ------- Run | Yrd Mat Min Robot Analysis Total . | . . . Derelict Logs Recovered . | . . . Drone Launches . | . . . Drone Recoveries . | . . . Exploration | -11 -10 -10 ------------- Run | Yrd Mat Min Turns Passed 2003 | 73 1748 182 Spaces Moved 1307 | 56 1128 123 Core 1307 | 56 1128 123 Treads . | . . . Legs . | . . . Wheels . | . . . Hover . | . . . Flight . | . . . Fastest Speed 50 | 50 50 50 Average Speed 104 | 57 102 137 Slowest Speed 150 | 100 150 150 Overloaded Moves . | . . . Propulsion Burnouts . | . . . Robots Hopped . | . . . Cave-ins Triggered . | . . . Exploration Rate (%) 41 | 3 95 26 Regions Visited 2 Branch Regions 1 Pre-discovered Areas 2 | . 2 . Known Exits Taken 1 | . 1 . Unknown Exits Taken 1 | 1 . . Scrap Searched . | . . . Spaces Dug 2 | . 2 . Terrain Destroyed 3 | . 3 . Melee . | . . . Projectile 3 | . 3 . AOE . | . . . Terrain Rammed . | . . . Walls Destroyed . | . . . Machines Disabled . | . . . Actions | -11 -10 -10 --------- Run | Yrd Mat Min Total 1809 | 82 1594 133 Wait 354 | 1 352 1 Move 1305 | 55 1127 123 Hop . | . . . Pick Up 11 | 5 6 . Fast Attach 15 | 3 12 . Attach 4 | 1 2 1 Detach 4 | 1 3 . Swap 11 | 1 10 . Drop 17 | 2 13 2 Fire 83 | 13 69 1 Melee 2 | . . 2 Ram 3 | . . 3 Kick . | . . . Crush . | . . . Escape Stasis . | . . . Rewire . | . . . Trap . | . . . Miscellaneous . | . . . Route ------- -11/Scrapyard -10/Materials (discovered 6 exits: *Mat x3 / *Min x2 / [*Sub]) -10/Mines History --------- Turn | Location | Event 5 | -11/Scrapyard | Discovered new exit (range 14) 74 | -11/Scrapyard | Entered Materials 247 | -10/Materials | Discovered new exit (range 3) 334 | -10/Materials | Build established: Mutant 573 | -10/Materials | Discovered new exit (range 15) 670 | -10/Materials | Core integrity fell below 50% 1136 | -10/Materials | Discovered new exit (range 5) 1184 | -10/Materials | Learned location of 1 exit from Recycling 1231 | -10/Materials | Learned 4 Subcaves zone layouts 1300 | -10/Materials | Learned location of 2 exits from Subcaves 1322 | -10/Materials | Learned Storage stockpile data 1336 | -10/Materials | Learned location of 1 exit from Storage 1360 | -10/Materials | Learned 4 Subcaves zone layouts 1393 | -10/Materials | Identified exit to Mines 1393 | -10/Materials | Identified exit to Materials 1529 | -10/Materials | Core integrity fell below 20% 1570 | -10/Materials | Discovered exit to Materials (range 15) 1592 | -10/Materials | Central database locked down 1822 | -10/Materials | Entered Mines 1979 | -10/Mines | Assembled infested the area 1982 | -10/Mines | Met a Derelict who couldn't figure out how to use a Trap Extractor 2004 | -10/Mines | Destroyed by D-53 Grenadier with Mini Grenade Launcher Last Messages --------------- 01982_ Explosive Trap short circuited. 01982_ An explosion rips through the floor. 01982_ CY-87Q(g) destroyed. 01987_ Dropped Imp. Medium Laser. 01990_ R-06 Scavenger collects Imp. Medium Laser. 01992_ as-78763 sneak attacks. 01995_ Sneak attack on T-07 Excavator. 01995_ Jacked T-07 Excavator... >>no_distress Distress signal routine blocked. 01997_ Sneak attack on T-07 Excavator. 01997_ Jacked T-07 Excavator... >>parse_system Reading system data... 01999_ Slammed into T-07 Excavator. 02002_ Slammed into U-05 Engineer. 02004_ C-30 ARC bursts open, deploying its payload. 02004_ D-53 Grenadier unfolds itself. Map ----- +----------------------------------------------------+ | ???????????????????????????????# #?????????? | | ???????????????????????????????# #?????????? | | ???????????????????????????????# #?????????? | | ???????????????????????????????# #?????????? | | ???????????????????????????????# #?????????? | | ??????????????????????????????## #??????????? | | ??????????????????????????????# #??????????? | | ??????????????????????????????# #??####????? | | ?????????????????????????????## #### #????? | | ????????????????????????????## ## #????? | | ????????????????????????##### ###????? | | ????????????????????????# ##??????? | | ????????????????????????# ## ##### ##???????? | | ????????????????????????# #####???## #????????? | | ????????????????????????# ########## #????????? | | ????????????????????????# ## #????????? | | ?????????????????????# ## ## ####### #????????? | | ?????????????????????# #????????? | | ?????????????????????####### ######### #????????? | | ???????????????????????????# #???????# #????????? | | ???????????????????????????# #???????# #????????? | | ????????????????????????#### #???##### #????????? | | ????????????????????????# #???# #????????? | | ?????????###????????????#dd #???# ####?????? | | ????###### #????????????#%######## ###### #?????? | | ????# ???????######@#??# #?????? | | ????#=]]*!!#???????# % #??# """ """ #?????? | | ????# !!! #???????# ######??# """ """ ####?????? | | ?????#*%* #???????# #???????# """ """ #????????? | | ????## == ####????# #???????# #????????? | | # [ ###### #???????# """ #????????? | | #???????# """ #????????? | | #???????# """ #????????? | | ######???????# #????????? | | ## ### ##????????????# #????????? | | ?## ##??######?????????????############????????? | | ??###????????????????????????????????????????????? | | ?????????????????????????????????????????????????? | | | | | | | | | | | | | | | | | | | | | | | | | +----------------------------------------------------+ Best States ------------- Heat Dissipation 25 Energy Generation 5 Energy Capacity 100 Matter Stores 300 Matter Capacity 300 Sight Range 18 Terrain Scan Range 16 Terrain Scan Density 10 Evasion (%) 50 Item Schematics ----------------- Utility Shielding | -10/Materials | Hacked Robot Schematics ------------------ None Fabricated ------------ Nothing Alien Tech Used ----------------- None Achievements -------------- None Challenges ------------ None Game ------ Seed OmegaCoreField Manual? 0 Play Time 00:20:24 Cumulative 92.2 hours Start 2024.11.11 @ 20:53:18 End 2024.11.11 @ 21:12:19 Sessions 1 Manual Loads 0 Difficulty Rogue Special Mode None Game No. 88 Rogue 88 Adventurer 0 Explorer 0 Win Type - Total 2 Types 2/0/0/0/0/0/0/0/0 Lore% 50 Gallery% 50 Achievement% 43 Wizard Run 0 Options --------- Layout 1 ASCII 0 Keyboard 1 Movement Arrows Keybinds 0 Fullscreen 2 Font 24/Smallcaps Map View 50x35 Zoom Use 0% Tactical HUD 1 Map Filters NONE Filters NONE Steam 1 RUN: 7648da1d-739a-404b-88cc-a5e066526e21